Cogmind - Beta 11.1 @@@ ROGUE MODE // 2022.05.01 @ 16:12:26 Player: Olga Result: Self-destructed Performance ------------- Evolutions (7) 3500 Regions Visited (12) 2400 Robots Destroyed (11) 55 Value Destroyed (206) 206 Prototype IDs (8) 160 Alien Tech Used (0) 0 Bonus (1700) 1700 TOTAL SCORE: 8021 Bonus ------- Entered Garrisons 200 Used RIF Installer 500 Entered DSFs 1000 Cogmind --------- Core Integrity 1095/1300 Matter 259/300 Energy 30/340 System Corruption 3% Temperature Cool (0) Movement Flying (111) Ox1 Location -3/Testing Parts ------- > --- POWER (1) -------- Particle Reactor > --- PROPULSION (4) --- Flight Unit Improved Flight Unit Impulse Thruster Array > --- UTILITY (14) ----- Advanced Weight Redist. System Advanced Gravity Neutralizer Structural Scanner Machine Analyzer Faulty Experimental Optical Array Advanced Signal Interpreter Advanced Melee Analysis Suite Improved Kinecellerator Layered Light Armor Plating Advanced Remote Shield Authchip [Device] > --- WEAPON (2) ------- Hypervelocity EM Gauss Rifle > --- INVENTORY (5) ---- Light Nuclear Core Impulse Thruster Array Peak State ------------ > --- POWER ------------ Light Angular Momentum Engine > --- PROPULSION ------- Improved Flight Unit Improved VTOL Module Impulse Thruster Array > --- UTILITY ---------- Advanced Weight Redist. System Advanced Gravity Neutralizer Structural Scanner Machine Analyzer Experimental Optical Array Advanced Signal Interpreter Advanced Melee Analysis Suite Improved Kinecellerator Propulsion Shielding Layered Light Armor Plating Layered Light Armor Plating Experimental Thermal Shield Authchip [Device] > --- WEAPON ----------- Hypervelocity EM Gauss Rifle Mace > --- INVENTORY -------- Light Nuclear Core Flight Unit Impulse Thruster Array Structural Scanner [Rating: 101] Favorites ----------- Power Light Angular Momentum Engine Engine Light Angular Momentum Engine Power Core Light Nuclear Core Reactor Particle Reactor Propulsion Improved VTOL Module Flight Unit Improved VTOL Module Utility Layered Light Armor Plating Device Structural Scanner Processor Advanced Signal Interpreter Hackware Authchip [Device] Protection Layered Light Armor Plating Weapon Mace Energy Gun Hypervelocity EM Gauss Rifle Ballistic Gun Light Assault Rifle Launcher Rocket Launcher Impact Weapon Mace Build | -11 -10 -9 -8 -7 -7 -7 -6 -5 -4 -4 -3 -3 ------- Run | Scr Mat Mat Mat Fac DSF Gar Fac Fac Fac DSF Res Tes Slots Evolved 14 | . . 2 2 2 . . 2 2 2 . 2 . Power . | . . . . . . . . . . . . . Propulsion 2 | . . . . 1 . . 1 . . . . . Utility 12 | . . 2 2 1 . . 1 2 2 . 2 . Weapon . | . . . . . . . . . . . . . Parts Attached 46 | 1 3 3 6 2 2 1 4 4 . 1 11 8 Power 5 | . . . 1 . . . . 1 . . 2 1 Engine 2 | . . . . . . . . 1 . . 1 . Core 2 | . . . 1 . . . . . . . 1 . Reactor 1 | . . . . . . . . . . . . 1 Propulsion 6 | . . 1 1 1 . . . 1 . . 1 1 Treads . | . . . . . . . . . . . . . Leg . | . . . . . . . . . . . . . Wheel . | . . . . . . . . . . . . . Hover . | . . . . . . . . . . . . . Flight 6 | . . 1 1 1 . . . 1 . . 1 1 Utility 28 | . 1 . 3 1 2 1 4 2 . 1 8 5 Device 12 | . 1 . 1 . . . 1 . . . 6 3 Storage . | . . . . . . . . . . . . . Processor 4 | . . . . . . . 1 1 . . . 2 Hackware 3 | . . . . . 1 . . . . 1 1 . Protection 9 | . . . 2 1 1 1 2 1 . . 1 . Artifact . | . . . . . . . . . . . . . Weapon 7 | 1 2 2 1 . . . . . . . . 1 Energy Gun 1 | . . . . . . . . . . . . 1 Energy Cannon . | . . . . . . . . . . . . . Ballistic Gun 2 | 1 . . 1 . . . . . . . . . Ballistic Cannon . | . . . . . . . . . . . . . Launcher 3 | . 1 2 . . . . . . . . . . Special Weapon . | . . . . . . . . . . . . . Impact Weapon 1 | . 1 . . . . . . . . . . . Slashing Weapon . | . . . . . . . . . . . . . Piercing Weapon . | . . . . . . . . . . . . . Special Melee Weapon . | . . . . . . . . . . . . . Unidentified Prototypes 8 | . . . 1 1 . . . . . . 2 4 Corrupted Parts 1 | . . . . . . . . . . . . 1 System Corruption 1 | . . . . . . . . . . . . 1 Parts Lost 15 | . . . . . 1 . . . . 2 4 8 Power 1 | . . . . . . . . . . . 1 . Propulsion 2 | . . . . . . . . . . . 1 1 Utility 10 | . . . . . 1 . . . . 2 2 5 Weapon 2 | . . . . . . . . . . . . 2 Highest Loss Streak 6 | . . . . . 1 . . . . 2 3 6 To Critical Strikes . | . . . . . . . . . . . . . Average Slot Usage (%) 68 | . 26 25 56 . 76 79 86 90 . 86 76 81 Engine 1 | . . . . . . . . 3 . 5 3 3 Core 1 | . . . 2 . 7 7 6 1 . . . . Flight 14 | . . . 16 . 23 23 20 21 . 21 16 13 Device 14 | . 11 11 11 . 15 10 13 11 . 10 14 20 Processor 7 | . . . . . . . 6 11 . 10 9 18 Hackware 3 | . . . . . 3 7 6 5 . 7 4 4 Protection 14 | . . . 10 . 19 23 26 27 . 26 20 12 Ballistic Gun 1 | . 10 . 6 . . . . . . . . . Impact Weapon 5 | . 3 11 9 . 7 7 6 5 . 5 4 3 Naked Turns . | . . . . . . . . . . . . . Heaviest Build 36 | 1 6 7 18 23 23 22 22 28 28 28 33 36 Greatest Support 41 | 3 3 4 18 23 23 23 23 30 30 30 35 41 Greatest Overweight (x) 2 | . 1 2 . . . . . . . . 1 . Average Overweight (x) . | . . . . . . . . . . . . . Largest Inventory Capacity 5 | 5 5 5 5 5 5 5 5 5 5 5 5 5 Average Capacity 5 | 5 5 5 5 5 5 5 5 5 5 5 5 5 Most Carried 5 | 5 5 5 5 3 5 5 5 5 5 5 5 5 Average Carried 4 | 5 4 4 4 2 4 4 4 4 5 5 4 4 Final Capacity 5 | 5 5 5 5 5 5 5 5 5 5 5 5 5 Final Carried 5 | 5 5 5 4 2 5 5 5 5 5 5 4 3 Class Distribution -------------------- 60% | Mutant 39% | Sprinter Dominant Class ---------------- Mutant | -10/Materials Mutant | -9/Materials Mutant | -8/Materials Mutant | -7/Factory Mutant | -7/DSF Sprinter | -7/Garrison Sprinter | -6/Factory Sprinter | -5/Factory Sprinter | -4/Factory Sprinter | -4/DSF Mutant | -3/Research Mutant | -3/Testing Resources | -11 -10 -9 -8 -7 -7 -7 -6 -5 -4 -4 -3 -3 ----------- Run | Scr Mat Mat Mat Fac DSF Gar Fac Fac Fac DSF Res Tes Matter Collected 655 | 200 20 128 . . 8 . . . . . 114 185 Remotely . | . . . . . . . . . . . . . Salvage Created 158 | . 23 59 . . . . . . . . . 76 Parts 15 | . 1 10 . . . . . . . . . 4 Haulers Intercepted . | . . . . . . . . . . . . . Recyclers Shooed . | . . . . . . . . . . . . . Parts Field Recycled . | . . . . . . . . . . . . . Retrieved Matter . | . . . . . . . . . . . . . Parts Self-Destructed . | . . . . . . . . . . . . . Prevented . | . . . . . . . . . . . . . Kills | -11 -10 -9 -8 -7 -7 -7 -6 -5 -4 -4 -3 -3 ------- Run | Scr Mat Mat Mat Fac DSF Gar Fac Fac Fac DSF Res Tes Combat Hostiles Destroyed 8 | . 3 4 . . . . . . . . . 1 Melee 1 | . . . . . . . . . . . . 1 Guns 1 | . 1 . . . . . . . . . . . AOE 6 | . 2 4 . . . . . . . . . . Classes Destroyed 5 | . 1 3 . . . . . . . . . 1 Builder 1 | . . 1 . . . . . . . . . . Mechanic 1 | . . . . . . . . . . . . 1 Watcher 1 | . . 1 . . . . . . . . . . Swarmer 7 | . 3 3 . . . . . . . . . 1 Grunt 1 | . . 1 . . . . . . . . . . Best Kill Streak 6 | . 3 6 . . . . . . . . . 1 Combat Bots Only 4 | . 3 4 . . . . . . . . . 1 Max Kills in Single Turn 2 | . 2 2 . . . . . . . . . 1 Gunslinging . | . . . . . . . . . . . . . Exploded 2 | . 2 2 . . . . . . . . . . Melee 1 | . . . . . . . . . . . . 1 Uniques/NPCs Destroyed . | . . . . . . . . . . . . . Combat | -11 -10 -9 -8 -7 -7 -7 -6 -5 -4 -4 -3 -3 -------- Run | Scr Mat Mat Mat Fac DSF Gar Fac Fac Fac DSF Res Tes Damage Taken 2529 | . 68 198 239 . 166 207 . . . 203 922 526 Core 583 | . 49 119 76 . 68 . . . . 66 131 74 Absorbed by Shields . | . . . . . . . . . . . . . Redirected to Shielding 51 | . . . . . . . . . . 7 32 12 Core Remaining (%) 90 | 100 80 70 86 . . 90 100 100 . 94 . . Volleys Fired 9 | . 3 5 . . . . . . . . . 1 Largest 2 | . 2 1 . . . . . . . . . 1 Hottest 53 | . 53 33 . . . . . . . . . 40 Shots Fired 12 | . 6 5 . . . . . . . . . 1 Gun 4 | . 3 . . . . . . . . . . 1 Cannon . | . . . . . . . . . . . . . Launcher 8 | . 3 5 . . . . . . . . . . Special . | . . . . . . . . . . . . . Kinetic 3 | . 3 . . . . . . . . . . . Thermal . | . . . . . . . . . . . . . Explosive 8 | . 3 5 . . . . . . . . . . Electromagnetic 1 | . . . . . . . . . . . . 1 Robot Hit Streak 2 | . . 2 . . . . . . . . . . Robot Miss Streak 1 | . . 1 . . . . . . . . . . Penetration Max . | . . . . . . . . . . . . . Secondary Targets . | . . . . . . . . . . . . . Shots Hit Robots 4 | . . 2 . . . . . . . . . 2 Core Hits 12 | . 3 8 . . . . . . . . . 1 Critical Kills . | . . . . . . . . . . . . . Critical Parts Destroyed . | . . . . . . . . . . . . . Critical Strikes . | . . . . . . . . . . . . . Melee Attacks 9 | . . 1 . . . . . . . . 2 6 Impact 9 | . . 1 . . . . . . . . 2 6 Slashing . | . . . . . . . . . . . . . Piercing . | . . . . . . . . . . . . . Sneak Attacks 1 | . . . . . . . . . . . . 1 Combat Hostiles . | . . . . . . . . . . . . . Follow-up Attacks . | . . . . . . . . . . . . . Damage Inflicted 581 | . 124 309 . . . . . . . . . 148 Guns 6 | . 6 . . . . . . . . . . . Cannons . | . . . . . . . . . . . . . Explosions 427 | . 118 309 . . . . . . . . . . Melee 148 | . . . . . . . . . . . . 148 Ramming . | . . . . . . . . . . . . . Kinetic 6 | . 6 . . . . . . . . . . . Thermal . | . . . . . . . . . . . . . Explosive 427 | . 118 309 . . . . . . . . . . Electromagnetic . | . . . . . . . . . . . . . Impact 148 | . . . . . . . . . . . . 148 Slashing . | . . . . . . . . . . . . . Piercing . | . . . . . . . . . . . . . Highest Corruption 3 | . . . . . . . . . . . 1 3 Average Corruption 2 | . . . . . . . . . . . 1 2 Corruption Purged . | . . . . . . . . . . . . . Corruption Blocked . | . . . . . . . . . . . . . Effects 2 | . . . . . . . . . . . . 2 Message Errors 1 | . . . . . . . . . . . . 1 Data Loss (minor) 1 | . . . . . . . . . . . . 1 Overload Shots . | . . . . . . . . . . . . . Overflow Damage 80 | . 7 . . . . . . . . . . 73 Projectiles . | . . . . . . . . . . . . . Explosions 7 | . 7 . . . . . . . . . . . Melee 73 | . . . . . . . . . . . . 73 Knockbacks . | . . . . . . . . . . . . . Impact . | . . . . . . . . . . . . . Kinetic . | . . . . . . . . . . . . . Secondary . | . . . . . . . . . . . . . Self-Inflicted Damage 27 | . . 27 . . . . . . . . . . Shots 1 | . . 1 . . . . . . . . . . Rammed . | . . . . . . . . . . . . . Targets Rammed . | . . . . . . . . . . . . . Kicked . | . . . . . . . . . . . . . Crushed . | . . . . . . . . . . . . . Highest Temperature 28 | . 2 . 13 . . 15 . 28 . . 13 15 Average Temperature 7 | . 1 . 6 . . 6 . 14 . . 5 6 Received Heat Transfer 444 | . 6 42 153 . 9 18 . . . . 153 63 Siege Activations . | . . . . . . . . . . . . . Robots Corrupted . | . . . . . . . . . . . . . Combat Hostiles . | . . . . . . . . . . . . . Parts Fried . | . . . . . . . . . . . . . Impact Corruptions 1 | . . . . . . . . . . . . 1 Robots Melted . | . . . . . . . . . . . . . Combat Hostiles . | . . . . . . . . . . . . . Parts Melted . | . . . . . . . . . . . . . Heat Transferred . | . . . . . . . . . . . . . Parts Sabotaged . | . . . . . . . . . . . . . Parts Stolen . | . . . . . . . . . . . . . Parts Stripped . | . . . . . . . . . . . . . Power Chain Reactions . | . . . . . . . . . . . . . Missiles Intercepted . | . . . . . . . . . . . . . Alert | -11 -10 -9 -8 -7 -7 -7 -6 -5 -4 -4 -3 -3 ------- Run | Scr Mat Mat Mat Fac DSF Gar Fac Fac Fac DSF Res Tes Peak Influence 454 | . 190 392 230 104 72 91 83 40 19 16 381 454 Initial 213 | . . 79 165 104 72 46 47 40 19 16 . 213 Average 141 | . 87 181 205 104 64 48 64 40 19 9 122 264 Maximum Alert Level 2 | . . 1 1 . . . . . . . 1 2 Low Security (%) 65 | 100 100 74 40 100 100 100 100 100 100 100 74 . Level 1 32 | . . 25 59 . . . . . . . 25 92 Level 2 1 | . . . . . . . . . . . . 7 Level 3 . | . . . . . . . . . . . . . Level 4 . | . . . . . . . . . . . . . Level 5 . | . . . . . . . . . . . . . High Security . | . . . . . . . . . . . . . Max Security . | . . . . . . . . . . . . . Squads Dispatched 14 | . 2 1 1 . . . . . . 1 4 5 Investigation 10 | . 1 . . . . . . . . . 4 5 Extermination . | . . . . . . . . . . . . . Reinforcement 4 | . 1 1 1 . . . . . . 1 . . Assault . | . . . . . . . . . . . . . Garrison . | . . . . . . . . . . . . . Intercept . | . . . . . . . . . . . . . Searches Triggered . | . . . . . . . . . . . . . Construction Impeded 1 | . . 1 . . . . . . . . . . Haulers Reinforced . | . . . . . . . . . . . . . Active Scanning Responses . | . . . . . . . . . . . . . Cargo Convoy Interrupts . | . . . . . . . . . . . . . Stealth | -11 -10 -9 -8 -7 -7 -7 -6 -5 -4 -4 -3 -3 --------- Run | Scr Mat Mat Mat Fac DSF Gar Fac Fac Fac DSF Res Tes Distress Signals 5 | . . 1 . . . . . . . . 2 2 Communications Jammed . | . . . . . . . . . . . . . Distress Signals . | . . . . . . . . . . . . . Times Spotted 95 | . 9 9 8 . 2 9 . . . 5 37 16 Peak Tracking Total 18 | . 4 9 7 . 2 10 . . . 5 18 14 Tactical Retreats 13 | . . 1 . . . 1 . . . . 7 4 Traps | -11 -10 -9 -8 -7 -7 -7 -6 -5 -4 -4 -3 -3 ------- Run | Scr Mat Mat Mat Fac DSF Gar Fac Fac Fac DSF Res Tes Traps Triggered 6 | . . . . . 1 2 1 . . . 2 . Indirectly . | . . . . . . . . . . . . . Trap Hack Attempts . | . . . . . . . . . . . . . Triggered . | . . . . . . . . . . . . . Disarmed . | . . . . . . . . . . . . . Reprogrammed . | . . . . . . . . . . . . . Reused . | . . . . . . . . . . . . . Traps Extracted . | . . . . . . . . . . . . . Installed . | . . . . . . . . . . . . . Triggered . | . . . . . . . . . . . . . Machines | -11 -10 -9 -8 -7 -7 -7 -6 -5 -4 -4 -3 -3 ---------- Run | Scr Mat Mat Mat Fac DSF Gar Fac Fac Fac DSF Res Tes Machines Disabled 2 | . . . . . . . . . . . . 2 Max in Single Turn 1 | . . . . . . . . . . . . 1 Garrison Access 1 | . . . . . . . 1 . . . . . Machines Sabotaged . | . . . . . . . . . . . . . Garrisons Compromised . | . . . . . . . . . . . . . Overloaded Fab Kills . | . . . . . . . . . . . . . Hacking | -11 -10 -9 -8 -7 -7 -7 -6 -5 -4 -4 -3 -3 --------- Run | Scr Mat Mat Mat Fac DSF Gar Fac Fac Fac DSF Res Tes Machines Accessed 27 | . 3 2 3 1 . . 4 . 1 . 6 7 Terminals 26 | . 3 2 3 1 . . 3 . 1 . 6 7 Fabricators . | . . . . . . . . . . . . . Repair Stations . | . . . . . . . . . . . . . Recycling Units . | . . . . . . . . . . . . . Scanalyzers . | . . . . . . . . . . . . . Garrison Access 1 | . . . . . . . 1 . . . . . Total Hacks 60 | . 7 5 8 2 . . 9 . 2 . 13 14 Successful 13 | . . 3 2 1 . . 4 . 1 . 1 1 Failed 47 | . 7 2 6 1 . . 5 . 1 . 12 13 Catastrophic 19 | . 3 1 2 . . . . . . . 6 7 Database Lockouts . | . . . . . . . . . . . . . Manual 34 | . 7 3 8 . . . 8 . . . 4 4 Terminals 59 | . 7 5 8 2 . . 8 . 2 . 13 14 Fabricators . | . . . . . . . . . . . . . Repair Stations . | . . . . . . . . . . . . . Recycling Units . | . . . . . . . . . . . . . Scanalyzers . | . . . . . . . . . . . . . Garrison Access 1 | . . . . . . . 1 . . . . . Terminal Hacks 7 | . . 3 . 1 . . . . 1 . 1 1 Open DSF 2 | . . . . 1 . . . . 1 . . . Level Access Points 1 | . . 1 . . . . . . . . . . Branch Access Points 1 | . . 1 . . . . . . . . . . Terminal Index 1 | . . . . . . . . . . . 1 . Zone Layout 2 | . . 1 . . . . . . . . . 1 Fabricator Hacks . | . . . . . . . . . . . . . Repair Station Hacks . | . . . . . . . . . . . . . Recycling Unit Hacks . | . . . . . . . . . . . . . Scanalyzer . | . . . . . . . . . . . . . Garrison Access Hacks 1 | . . . . . . . 1 . . . . . Seal Access 1 | . . . . . . . 1 . . . . . Unauthorized Hacks 5 | . . . 2 . . . 3 . . . . . Terminals 5 | . . . 2 . . . 3 . . . . . Botnet 5 | . . . 2 . . . 3 . . . . . Fabricators . | . . . . . . . . . . . . . Repair Stations . | . . . . . . . . . . . . . Recycling Units . | . . . . . . . . . . . . . Scanalyzers . | . . . . . . . . . . . . . Garrison Access . | . . . . . . . . . . . . . Data Cores Recovered . | . . . . . . . . . . . . . Used . | . . . . . . . . . . . . . Hacking Detections 25 | . 3 1 3 1 . . 3 . 1 . 6 7 Full Trace Events 11 | . 2 . . . . . . . . . 4 5 Feedback Events 3 | . . . . . . . . . . . 2 1 Corruption 2 | . . . . . . . . . . . 1 1 Hackware Fried 1 | . . . . . . . . . . . 1 . Feedback Blocked . | . . . . . . . . . . . . . Robot Schematics Acquired . | . . . . . . . . . . . . . Robots Built . | . . . . . . . . . . . . . Authchips . | . . . . . . . . . . . . . Time . | . . . . . . . . . . . . . Total Robot Build Rating . | . . . . . . . . . . . . . Part Schematics Acquired . | . . . . . . . . . . . . . Parts Built . | . . . . . . . . . . . . . Authchips . | . . . . . . . . . . . . . Time . | . . . . . . . . . . . . . Total Part Build Rating . | . . . . . . . . . . . . . Parts Repaired . | . . . . . . . . . . . . . Time . | . . . . . . . . . . . . . Parts Recycled . | . . . . . . . . . . . . . Recycled Matter . | . . . . . . . . . . . . . Retrieved Matter . | . . . . . . . . . . . . . Retrieved Components . | . . . . . . . . . . . . . Parts Scanalyzed . | . . . . . . . . . . . . . Part Schematics Acquired . | . . . . . . . . . . . . . Parts Damaged . | . . . . . . . . . . . . . Bothacking | -11 -10 -9 -8 -7 -7 -7 -6 -5 -4 -4 -3 -3 ------------ Run | Scr Mat Mat Mat Fac DSF Gar Fac Fac Fac DSF Res Tes Used RIF Installer 1 | . . . . . . 1 . . . . . . Robots Hacked . | . . . . . . . . . . . . . Non-combat . | . . . . . . . . . . . . . Combat . | . . . . . . . . . . . . . Robot Hacks Applied . | . . . . . . . . . . . . . Relay Couplers Released . | . . . . . . . . . . . . . Fabnet Peak Effective % . | . . . . . . . . . . . . . Robots Rewired . | . . . . . . . . . . . . . Allies Hacked . | . . . . . . . . . . . . . Hacks Repelled . | . . . . . . . . . . . . . Allies | -11 -10 -9 -8 -7 -7 -7 -6 -5 -4 -4 -3 -3 -------- Run | Scr Mat Mat Mat Fac DSF Gar Fac Fac Fac DSF Res Tes Total Allies . | . . . . . . . . . . . . . Largest Group . | . . . . . . . . . . . . . Highest-Rated Group . | . . . . . . . . . . . . . Highest-Rated Ally . | . . . . . . . . . . . . . Total Orders . | . . . . . . . . . . . . . Ally Attacks . | . . . . . . . . . . . . . Total Damage . | . . . . . . . . . . . . . Kills . | . . . . . . . . . . . . . Allies Corrupted . | . . . . . . . . . . . . . Allies Melted . | . . . . . . . . . . . . . Intel | -11 -10 -9 -8 -7 -7 -7 -6 -5 -4 -4 -3 -3 ------- Run | Scr Mat Mat Mat Fac DSF Gar Fac Fac Fac DSF Res Tes Robot Analysis Total . | . . . . . . . . . . . . . Derelict Logs Recovered . | . . . . . . . . . . . . . Drone Launches . | . . . . . . . . . . . . . Drone Recoveries . | . . . . . . . . . . . . . Exploration | -11 -10 -9 -8 -7 -7 -7 -6 -5 -4 -4 -3 -3 ------------- Run | Scr Mat Mat Mat Fac DSF Gar Fac Fac Fac DSF Res Tes Turns Passed 930 | 3 112 62 77 3 33 72 86 27 3 19 231 202 Spaces Moved 2082 | 3 187 82 187 4 74 101 193 65 9 57 637 483 Core 265 | 3 187 75 . . . . . . . . . . Treads . | . . . . . . . . . . . . . Legs . | . . . . . . . . . . . . . Wheels . | . . . . . . . . . . . . . Hover . | . . . . . . . . . . . . . Flight 1817 | . . 7 187 4 74 101 193 65 9 57 637 483 Fastest Speed 31 | 50 50 40 34 32 32 32 32 31 31 31 31 34 Average Speed 35 | 50 50 54 34 32 32 32 32 31 31 31 32 34 Slowest Speed 150 | 50 100 150 40 32 32 32 32 32 31 31 106 39 Overloaded Moves . | . . . . . . . . . . . . . Propulsion Burnouts . | . . . . . . . . . . . . . Robots Hopped 34 | . . . 10 . . . . 1 . 1 17 5 Cave-ins Triggered . | . . . . . . . . . . . . . Exploration Rate (%) 31 | 2 46 19 24 . 78 32 12 2 1 85 22 57 Regions Visited 12 Branch Regions 1 Pre-discovered Areas . | . . . . . . . . . . . . . Known Exits Taken 6 | . . 1 . 1 . . 1 1 1 . 1 . Unknown Exits Taken 3 | 1 1 . 1 . . . . . . . . . Scrap Searched . | . . . . . . . . . . . . . Spaces Dug 16 | . . 14 . . . . . . . . 1 1 Terrain Destroyed 89 | . 36 51 . . . . . . . . 1 1 Melee 3 | . . 1 . . . . . . . . 1 1 Projectile . | . . . . . . . . . . . . . AOE 86 | . 36 50 . . . . . . . . . . Terrain Rammed . | . . . . . . . . . . . . . Walls Destroyed . | . . . . . . . . . . . . . Machines Disabled . | . . . . . . . . . . . . . Actions | -11 -10 -9 -8 -7 -7 -7 -6 -5 -4 -4 -3 -3 --------- Run | Scr Mat Mat Mat Fac DSF Gar Fac Fac Fac DSF Res Tes Total 2200 | 3 200 92 189 5 82 141 216 69 8 56 639 500 Wait 4 | . . . . . . . . . . . . 4 Move 2009 | 2 186 81 168 3 73 100 192 62 8 54 606 474 Hop 27 | . . . 8 . . . . 1 . 1 13 4 Pick Up 18 | . 3 . 4 . 5 1 1 1 . . 2 1 Fast Attach 26 | 1 2 1 3 . 2 . 2 2 . 1 6 6 Attach 18 | . . 2 3 2 . 1 1 2 . . 4 3 Detach 6 | . 1 2 . . . 1 . 1 . . 1 . Swap 3 | . 1 . . . . . 1 . . . 1 . Drop 17 | . 4 . 3 . 2 2 1 . . . 4 1 Fire 9 | . 3 5 . . . . . . . . . 1 Melee 9 | . . 1 . . . . . . . . 2 6 Ram . | . . . . . . . . . . . . . Kick . | . . . . . . . . . . . . . Crush . | . . . . . . . . . . . . . Escape Stasis 54 | . . . . . . 36 18 . . . . . Rewire . | . . . . . . . . . . . . . Trap . | . . . . . . . . . . . . . Miscellaneous . | . . . . . . . . . . . . . Route ------- -11/Scrapyard -10/Materials (discovered 2 exits: *Mat / [*Min]) -9/Materials (discovered 5 exits: *Mat x3 / Min x2) -8/Materials -7/Factory -7/DSF -7/Garrison -6/Factory -5/Factory -4/Factory -4/DSF -3/Research -3/Testing History --------- Turn | Location | Event 1 | -11/Scrapyard | Released all parts (6) 1 | -11/Scrapyard | Discovered new exit (range 2) 4 | -11/Scrapyard | Entered Materials 86 | -10/Materials | Discovered new exit (range 7) 113 | -10/Materials | Discovered new exit (range 8) 116 | -10/Materials | Entered another Materials area 116 | -9/Materials | Evolved 2 slots: Utility x2 122 | -9/Materials | Identified exit to Mines 128 | -9/Materials | Identified exit to Materials 178 | -9/Materials | Entered another Materials area 178 | -8/Materials | Evolved 2 slots: Utility x2 243 | -8/Materials | Discovered new exit (range 9) 255 | -8/Materials | Entered Factory 255 | -7/Factory | Evolved 2 slots: Propulsion x1, Utility x1 258 | -7/Factory | Identified exit to DSF 258 | -7/Factory | Entered DSF 275 | -7/DSF | Discovered new exit (range 16) 276 | -7/DSF | Additional patrols routed to DSF 291 | -7/DSF | Entered Garrison 293 | -7/Garrison | Installed Relay Interface Framework 346 | -7/Garrison | Triggered checkpoint 360 | -7/Garrison | Discovered new exit (range 10) 363 | -7/Garrison | Entered Factory 363 | -6/Factory | Evolved 2 slots: Propulsion x1, Utility x1 447 | -6/Factory | Discovered new exit (range 8) 449 | -6/Factory | Identified exit to Factory 449 | -6/Factory | Entered another Factory area 449 | -5/Factory | Evolved 2 slots: Utility x2 474 | -5/Factory | Discovered new exit (range 5) 476 | -5/Factory | Identified exit to Factory 476 | -5/Factory | Entered another Factory area 476 | -4/Factory | Evolved 2 slots: Utility x2 479 | -4/Factory | Identified exit to DSF 479 | -4/Factory | Entered DSF 494 | -4/DSF | Discovered new exit (range 16) 498 | -4/DSF | Identified exit to Research 498 | -4/DSF | Entered Research 498 | -3/Research | Evolved 2 slots: Utility x2 519 | -3/Research | Spotted B-86 Titan 550 | -3/Research | Build established: Sprinter 576 | -3/Research | Spotted B-86 Titan 636 | -3/Research | Adv. Hacking Suite fried by hacking feedback 646 | -3/Research | Discovered new exit (range 6) 647 | -3/Research | Identified exit to Testing 666 | -3/Research | Found Prototype Device 666 | -3/Research | Identified Exp. Thermal Shield 667 | -3/Research | Lost 3 parts (1p1n1u) 729 | -3/Research | Entered Testing 766 | -3/Testing | Spotted Striker 768 | -3/Testing | Spotted Striker 834 | -3/Testing | Found Prototype Energy Gun 834 | -3/Testing | Identified Hyp. EM Gauss Rifle 840 | -3/Testing | Spotted PD-KQ1BTP5I1R 917 | -3/Testing | Build established: Mutant 931 | -3/Testing | Self-destructed Last Messages --------------- 00880_ C-30 ARC bursts open, deploying its payload. 00880_ S-43 Plague unfolds itself. 00880_ Structural Scanner destroyed. 00881_ Acquired 109 matter. 00882_ Propulsion Shielding destroyed. 00882_ Imp. VTOL Module destroyed. 00882_ S-43 Plague destroyed. 00883_ Acquired 34 matter. 00886_ Dropped Lgt. Angular Momentum Engine. 00888_ Acquired Particle Reactor. 00890_ Exp. Thermal Shield destroyed. 00902_ Mace destroyed. 00902_ Critical hit (Destroy). 00912_ Connecting with Terminal... 00918_ Drone sends a signal. 00920_ Terminal disabled. 00922_ System corrupted: Component data lost. 00922_ K-01 Serf cleans the Field Warper. 00930_ Acquired Prototype Device. 00930_ Identified Adv. Remote Shield. Map ----- +----------------------------------------------------+ | ??????## """ + + """ !#### | | ??????## # # """ #### | | ??????## + # """ #### | | ??????##[ # # #### | | ??????######### ########### | | ??????######### ########### | | ?????????????## ##????## | | ?????????????## ##????## | | ?????????????## ##????## | | ????????????### ###???## | | ????????????### ###???## | | ????????????## ##???## | | ????????????## "T ##???## | | ????????????## "" ####### | | ????????????## ########## | | ????????????### ##### | | ######??????### ## "" | | # #???????## ##""" """ | | # #???????## ##"T """ | | # ########## ##""" """ | | # ########## ## "" | | # / ##### """ | | # # ########+###### """ | | # # ##### # """ | | # # #??## # | | # @ # #??## + """ | | ###### #??## # """ | | ?????# #??## # """ | | ?????# #??## # | | ?????# #??## # """ | | ?????? ???## # """ | | ?????? ???############ """ | | ?????? ???############ | | ?????? ?????????????## | | ??????#?????????????## | | ????????????????????## | | ????????????????????## T" | | ????????????????????## """ | | ???????????????""""?## | | ??????????????""S""?## | | ??????????????"" ""?## ## | | ?????????????? ? # # | | ?????????????""" """ # # | | ??????????## """ """ # #% | | ??????????## """ """ # # | | ??????????## # + | | ??????????## ] + # | | ??????????## # # | | ??????????## # # | | ??????????############ # | +----------------------------------------------------+ Best States ------------- Heat Dissipation 46 Energy Generation 23 Energy Capacity 340 Matter Stores 300 Matter Capacity 300 Sight Range 16 Terrain Scan Density 10 Additional Mass Support 16 Armor Coverage 600 Resistance: TH 30 Propulsion Shielding 33 Evasion (%) 63 Melee Accuracy 8 Kinecelleration 40 Offensive Hacking 14 Authchip Count 2 Item Schematics ----------------- None Robot Schematics ------------------ None Fabricated ------------ Nothing Alien Tech Used ----------------- None Achievements -------------- None Challenges ------------ None Game ------ Seed CloakingSupercompositeRipper Manual? 0 Play Time 00:35:24 Cumulative 142.7 hours Start 2022.05.01 @ 15:40:03 End 2022.05.01 @ 16:12:26 Sessions 1 Manual Loads 0 Difficulty Rogue Special Mode None Game No. 204 Rogue 203 Adventurer 0 Explorer 1 Win Type - Total 5 Types 5/0/0/0/0/0/0/0/0 Lore% 59 Gallery% 61 Achievement% 50 Wizard Run 0 Options --------- ASCII 1 Keyboard 0 Movement Vi Keybinds 0 Fullscreen 1 Font 18/SmallcapsGlow Map View 76x50 Tactical HUD 1 Map Filters NONE Filters NONE Steam 1 RUN: 1eeda732-d821-4a1f-a4f6-4cfa0c3b6432